bitfinex/quotes_SOLUSD_20250818
["timestamp","ask_amount","ask_price","bid_price","bid_amount"]
[1755479793207,0.06,190.06,190.05,25.83659149]
[1755479793403,0.06,190.06,190.05,10.73037592]
[1755479793603,0.06,190.06,190.05,5.46860271]
[1755479794645,0.06,190.06,190.0,31.26315789]
[1755479794865,0.06,190.06,189.98,39.24]
[1755479794866,0.69,190.05,189.98,44.50344555]
[1755479795066,0.06,190.06,190.04,5.46860271]
[1755479795446,0.69,190.05,190.03,5.46860271]
[1755479795659,0.69,190.04,190.03,5.46860271]
[1755479795955,0.06,190.06,190.03,5.46860271]
[1755479796142,0.69,190.05,190.02,5.46860271]
[1755479796347,0.69,190.05,189.98,5.92344555]
[1755479796539,8.61510134,190.05,189.96,5.26399058]
[1755479796722,0.69,190.04,190.0,7.92510134]
[1755479796927,0.69,190.03,190.0,7.92510134]
[1755479797151,39.27,190.02,190.0,7.92510134]
[1755479797449,38.58,190.02,190.0,7.92510134]
[1755479797625,38.58,190.02,190.01,7.92510134]
[1755479798029,39.27,190.02,189.98,7.92510134]
[1755479798258,0.69,190.01,189.97,7.92510134]
[1755479798432,0.69,190.01,189.94,0.03]
[1755479798433,0.69,190.01,189.98,7.92510134]
[1755479798958,38.58,190.02,189.99,7.92510134]
[1755479799157,39.27,190.02,190.0,7.92510134]
[1755479799465,39.27,190.02,190.01,7.92510134]
[1755479799466,38.58,190.02,190.01,7.92510134]
[1755479800057,32.0115717,190.06,190.01,7.92510134]
[1755479800224,39.27,190.05,190.01,7.92510134]
[1755479800427,39.27,190.05,189.97,0.66]
[1755479800627,7.92510134,190.03,189.98,7.92510134]
[1755479800859,0.69,190.02,189.99,7.92510134]
[1755479801040,38.58,190.01,189.98,7.95510134]
[1755479801246,39.27,190.0,189.98,0.03]
[1755479801669,0.69,189.99,189.98,0.03]
[1755479802557,38.58,190.0,189.98,7.95510134]
[1755479803155,38.58,190.0,189.99,7.92510134]
[1755479803677,26.0,190.02,189.99,7.92510134]
[1755479803839,26.0,190.02,190.01,7.92510134]
[1755479804034,38.54,190.03,190.01,7.92510134]
[1755479804244,0.06,190.04,190.02,7.92510134]
[1755479804461,42.04843838,190.03,189.98,5.29367376]
[1755479804764,0.06,190.04,190.0,15.10621557]
[1755479805138,0.06,190.04,190.02,5.26260393]
[1755479805341,0.06,190.04,190.03,0.69]
[1755479805558,0.06,190.04,190.03,8.61510134]
[1755479806940,0.06,190.04,190.03,7.92510134]
[1755479808162,0.06,190.04,190.03,13.18742834]
[1755479808835,0.06,190.04,190.03,13.87742834]
[1755479811367,0.06,190.04,190.03,28.98364391]
[1755479811368,1e-08,190.04,190.03,28.98364391]
[1755479812069,1e-08,190.04,190.03,5.262327]
[1755479812368,3.5187269,190.04,190.03,13.18742834]
[1755479812552,7.42830944,190.04,190.03,13.18742834]
[1755479813179,7.42773896,190.04,190.03,13.18742834]
[1755479813477,7.42773896,190.04,190.03,13.87742834]
[1755479814159,3.90901207,190.04,190.03,13.87742834]
[1755479814362,3.91222852,190.04,190.03,13.87742834]
[1755479814946,1e-08,190.04,190.03,13.87742834]
[1755479815367,1e-08,190.04,190.03,54.98364391]
[1755479816358,1e-08,190.04,190.03,13.18742834]
[1755479818278,1e-08,190.04,190.03,10.69009507]
[1755479820185,1e-08,190.04,190.01,0.03]
[1755479820382,0.71,190.03,190.01,0.03]
[1755479820588,3.5179036,190.02,190.01,0.03]
[1755479820756,4.2279036,190.02,190.01,0.03]
[1755479820951,4.2281191,190.02,190.01,0.03]
[1755479821163,0.71,190.02,190.01,0.03]
[1755479821581,0.71,190.02,190.01,5.45776807]
[1755479821885,0.71,190.02,190.01,0.03]
[1755479822386,4.22891342,190.02,190.01,0.03]
[1755479822587,3.51891342,190.03,190.01,5.45776807]
[1755479823194,3.51891343,190.04,190.01,5.45776807]
[1755479823495,0.71000001,190.04,190.01,5.45776807]
[1755479823661,1e-08,190.04,190.03,5.42776807]
[1755479823985,1e-08,190.04,190.03,6.11776807]
[1755479824487,1e-08,190.04,190.03,11.38009507]
[1755479824992,1e-08,190.04,190.03,26.48631064]
[1755479825695,1e-08,190.04,190.03,52.48631064]
[1755479825919,1e-08,190.04,190.03,51.79631064]
[1755479826200,1e-08,190.04,190.03,10.69009507]
[1755479826374,1e-08,190.04,190.03,11.38009507]
[1755479826579,1e-08,190.04,190.03,52.48631064]
[1755479827310,1e-08,190.04,190.03,90.86631064]
[1755479829808,0.06,190.06,190.05,41.10621557]
[1755479830098,0.06,190.06,190.05,47.06016096]
[1755479830303,0.06,190.08,190.05,47.75016096]
[1755479830593,0.06,190.08,190.07,20.53398364]
[1755479831164,0.06,190.08,190.07,21.22398364]
[1755479831704,0.06,190.08,190.07,21.75010559]
[1755479831901,0.06,190.08,190.07,27.01132514]
[1755479832797,0.06,190.09,190.08,15.10621557]
[1755479833001,0.06,190.1,190.08,47.22398364]
[1755479833297,1e-08,190.11,190.1,15.10621557]
[1755479833466,1e-08,190.11,190.1,20.53398364]
[1755479833860,1e-08,190.11,190.1,26.4843729]
[1755479834702,1e-08,190.11,190.1,48.98815733]
[1755479835873,1e-08,190.11,190.1,5.26038926]
[1755479836072,1e-08,190.11,190.1,10.68815733]
[1755479837002,1e-08,190.11,190.09,43.54063283]
[1755479837003,0.69000001,190.11,190.09,43.54063283]
[1755479837387,0.69000001,190.11,190.1,5.42776807]
[1755479837900,0.69000001,190.11,190.08,10.68865474]
[1755479838316,0.69,190.1,190.08,10.68865474]
[1755479838472,0.69,190.1,190.08,5.26088667]
[1755479838678,1e-08,190.11,190.07,43.70776807]
[1755479838679,0.69,190.09,190.07,48.96896843]
[1755479838900,0.69,190.09,190.07,43.54120036]
[1755479839096,0.69,190.09,190.07,10.68896843]
[1755479839688,1e-08,190.11,190.04,28.26115314]
[1755479839689,0.69,190.08,190.04,15.10621557]
[1755479839906,1e-08,190.11,190.04,20.53398364]
[1755479839907,0.69,190.07,190.04,20.53398364]
[1755479840107,0.69,190.06,190.04,20.53398364]
[1755479840325,0.69,190.06,190.04,5.26179406]
[1755479840639,0.69,190.06,190.03,48.9500588]
[1755479840814,0.69,190.06,190.04,5.42776807]
[1755479841343,0.69,190.08,190.04,5.42776807]
[1755479841499,0.69000001,190.11,190.07,5.42776807]
[1755479841702,0.69000001,190.11,190.08,5.42776807]
[1755479841906,0.69000001,190.11,190.08,10.68853631]
[1755479842296,0.69000001,190.11,190.09,5.42776807]
[1755479842702,1e-08,190.11,190.08,5.26076824]
[1755479843003,1e-08,190.11,190.1,5.42776807]
[1755479843825,1e-08,190.11,190.1,10.68815733]
[1755479845202,59.43961074,190.1,190.09,15.10621557]
[1755479845405,59.43961074,190.1,190.09,20.53398364]
[1755479845602,59.43961074,190.1,190.08,38.22]
[1755479845603,60.12961074,190.1,190.08,31.42776807]
[1755479846199,0.69,190.09,190.03,13.15556948]
[1755479846506,0.69,190.09,190.05,46.53398364]
[1755479846725,59.43961074,190.1,190.05,46.53398364]
[1755479846726,0.69,190.08,190.05,46.53398364]
[1755479846895,0.69,190.08,190.06,5.42776807]
[1755479847399,59.43961074,190.1,190.06,5.42776807]
[1755479847603,0.69,190.09,190.06,5.42776807]
[1755479848002,0.69,190.08,190.06,5.42776807]
[1755479848216,0.69,190.07,190.05,10.68929479]
[1755479848528,64.86737881,190.1,190.05,10.68929479]
[1755479848827,0.69,190.06,190.02,43.58776807]
[1755479849221,0.69,190.06,190.03,5.42776807]
[1755479849425,5.42776807,190.09,190.04,5.42776807]
[1755479849728,0.69,190.08,190.04,5.42776807]
[1755479849939,0.69,190.07,190.02,43.42260393]
[1755479850100,0.69,190.07,190.03,5.42776807]
[1755479850301,5.42776807,190.09,190.02,43.42260393]
[1755479850511,0.69,190.06,190.03,5.42776807]
[1755479852321,0.69,190.06,190.04,0.03]
[1755479852531,0.69,190.05,190.04,0.03]
[1755479853507,5.42776807,190.08,190.04,0.03]
[1755479853725,0.69,190.07,190.04,0.03]
[1755479854120,0.69,190.06,190.04,0.03]
[1755479854628,0.69,190.05,190.04,0.03]
[1755479856433,5.42776807,190.08,190.04,0.03]
[1755479856625,59.43961074,190.1,190.07,5.42776807]
[1755479856823,59.43961074,190.1,190.08,5.42776807]
[1755479857024,59.43961074,190.1,190.09,5.42776807]
[1755479858435,59.43961074,190.1,190.09,6.09776807]
[1755479858653,59.43961074,190.1,190.09,11.35843407]
[1755479858820,59.43961074,190.1,190.09,26.46464964]
[1755479859007,32.60507275,190.1,190.09,26.46464964]
[1755479859206,1e-08,190.11,190.09,26.99071624]
[1755479859441,1e-08,190.11,190.1,32.09776807]
[1755479860625,1e-08,190.11,190.1,90.5043729]
[1755479862540,1e-08,190.13,190.11,41.10621557]
[1755479862761,0.06,190.17,190.11,41.10621557]
[1755479862762,0.06,190.17,190.16,41.10621557]
[1755479863065,0.06,190.17,190.16,46.53398364]
[1755479863267,0.06,190.17,190.16,47.20398364]
[1755479864541,0.06,190.17,190.16,52.46271313]
[1755479865072,0.06,190.2,190.16,52.46271313]
[1755479865373,0.06,190.2,190.17,44.09776807]
[1755479865944,0.06,190.2,190.17,43.42776807]
[1755479866548,0.06,190.2,190.17,48.68622103]
[1755479867276,0.06,190.2,190.17,49.35622103]
[1755479869559,0.06,190.2,190.17,48.68622103]
[1755479869759,0.06,190.2,190.17,63.7324366]
[1755479869984,0.77,190.18,190.17,37.94]
[1755479870188,0.77,190.18,190.16,5.42776807]
[1755479870409,0.71,190.17,190.15,43.19878744]
[1755479870610,0.71,190.17,190.15,48.62655551]
[1755479871193,0.71,190.17,190.16,5.42776807]
[1755479871378,0.06,190.18,190.16,5.42776807]
[1755479871699,0.06,190.18,190.17,5.42776807]
[1755479872197,0.06,190.18,190.17,58.45398364]
[1755479872897,0.06,190.18,190.17,63.7124366]
[1755479874673,0.06,190.18,190.17,64.3824366]
[1755479874888,0.06,190.18,190.17,63.7124366]
[1755479875093,0.06,190.18,190.17,64.3824366]
[1755479875571,1e-08,190.18,190.17,64.3824366]
[1755479876794,1e-08,190.18,190.17,63.7124366]
[1755479877395,1e-08,190.18,190.17,64.3824366]
[1755479880212,1e-08,190.18,190.17,63.7124366]
[1755479880505,1e-08,190.18,190.17,89.7124366]
[1755479881244,1e-08,190.18,190.17,74.60622103]
[1755479881403,0.71000001,190.18,190.14,20.3654982]
[1755479881581,0.71,190.17,190.15,43.28776807]
[1755479881780,0.71,190.16,190.14,5.25928263]
[1755479881981,0.71,190.15,190.13,0.03]
[1755479882482,0.71,190.17,190.14,5.42776807]
[1755479882687,0.71,190.16,190.13,0.03]
[1755479882884,0.71,190.16,190.13,10.71726938]
[1755479883201,0.71,190.15,190.13,10.71726938]
[1755479883384,0.71,190.14,190.13,10.71726938]
[1755479884187,0.71,190.17,190.13,10.71726938]
[1755479884384,1e-08,190.18,190.15,5.42776807]
[1755479884712,1e-08,190.18,190.13,10.71726938]
[1755479884713,0.71,190.16,190.13,10.71726938]
[1755479884882,0.71,190.15,190.13,10.71726938]
[1755479885212,5.42776808,190.18,190.13,10.71726938]
[1755479885213,0.71,190.14,190.13,10.71726938]
[1755479885417,0.71000001,190.18,190.13,10.71726938]
[1755479885613,0.71,190.17,190.15,0.03]
[1755479885794,5.42776807,190.16,190.15,0.03]
[1755479886113,6.13776807,190.17,190.15,0.03]
[1755479886316,6.13776807,190.16,190.15,0.03]
[1755479886779,0.71,190.16,190.15,0.03]
[1755479887995,6.13776807,190.16,190.15,0.03]
[1755479888187,0.71,190.16,190.15,0.03]
[1755479889122,6.13776807,190.16,190.15,0.03]
[1755479889688,0.71,190.16,190.15,0.03]
[1755479889892,11.39649756,190.16,190.15,0.03]
[1755479891188,14.91157377,190.16,190.15,0.03]
[1755479891390,11.39649756,190.16,190.15,0.03]
[1755479891589,14.91157377,190.16,190.15,0.03]
[1755479891784,11.39649756,190.16,190.15,0.03]
[1755479892110,14.91157377,190.16,190.15,0.03]
[1755479892494,41.10621557,190.14,190.13,0.03]
[1755479892693,15.10621557,190.13,190.11,0.03]
[1755479893010,50.04905985,190.12,190.11,0.03]
[1755479893183,50.75905985,190.12,190.11,0.03]
[1755479893601,56.01889574,190.12,190.11,0.03]
[1755479894005,26.0,190.1,190.09,0.03]
[1755479894207,34.94284428,190.1,190.09,0.03]
[1755479894718,35.65284428,190.1,190.09,0.03]
[1755479895597,40.91323354,190.1,190.09,0.03]
[1755479896242,56.01944911,190.1,190.09,0.03]
[1755479897395,15.10621557,190.09,190.07,0.03]
[1755479897592,67.13000261,190.08,190.07,0.03]
[1755479897792,67.81000261,190.08,190.07,0.03]
[1755479898290,62.38223454,190.08,190.07,0.03]
[1755479898492,14.88378704,190.08,190.07,0.03]
[1755479898830,75.18871083,190.08,190.07,0.03]
[1755479899002,78.70378704,190.08,190.07,0.03]
[1755479899316,35.62284428,190.08,190.07,0.03]
[1755479899639,26.0,190.08,190.07,0.03]
[1755479899924,63.82,190.08,190.07,0.03]
[1755479900137,69.92776807,190.08,190.07,0.03]
[1755479901243,63.82,190.08,190.07,0.03]
[1755479902142,37.82,190.08,190.07,0.03]
[1755479902807,43.92776807,190.08,190.07,0.03]
[1755479903014,49.18871083,190.08,190.07,0.03]
[1755479903641,52.69826825,190.08,190.07,0.03]
[1755479907435,46.75732549,190.08,190.07,0.03]
[1755479907647,43.24776807,190.08,190.07,0.03]
[1755479907850,43.92776807,190.08,190.07,0.03]
[1755479908320,49.18871083,190.08,190.07,0.03]
[1755479909028,52.6984415,190.08,190.07,0.03]
[1755479910448,67.80465707,190.08,190.07,0.03]
[1755479910614,41.10621557,190.06,190.05,0.03]
[1755479910820,61.78371431,190.06,190.05,0.03]
[1755479911010,62.46371431,190.06,190.05,0.03]
[1755479911518,67.72521067,190.06,190.05,0.03]
[1755479912860,41.24973067,190.06,190.05,0.03]
[1755479913018,46.67749874,190.06,190.05,0.03]
[1755479913216,41.24973067,190.06,190.05,0.03]
[1755479913430,3.50973067,190.06,190.05,0.03]
[1755479913628,37.76,190.06,190.05,0.03]
[1755479913834,41.26973067,190.06,190.05,0.03]
[1755479914247,37.76,190.06,190.05,0.03]
[1755479915468,43.18776807,190.06,190.05,0.03]
[1755479915649,52.63975823,190.06,190.05,0.03]
[1755479915950,3.5104938,190.06,190.05,0.03]
[1755479916156,37.76,190.06,190.05,0.03]
[1755479916452,46.69859408,190.06,190.05,0.03]
[1755479916663,67.74630601,190.06,190.05,0.03]
[1755479917038,46.53232237,190.06,190.05,0.03]
[1755479917237,51.96009044,190.06,190.05,0.03]
[1755479917421,46.69859408,190.06,190.05,0.03]
[1755479917622,51.96009044,190.06,190.05,0.03]
[1755479917822,52.64009044,190.06,190.05,0.03]
[1755479918056,47.37859408,190.06,190.05,0.03]
[1755479918261,46.69859408,190.06,190.05,0.03]
[1755479918951,41.27082601,190.06,190.05,0.03]
[1755479919261,46.69859408,190.06,190.05,0.03]
[1755479919631,51.96009044,190.06,190.05,0.03]
[1755479919962,52.64009044,190.06,190.05,0.03]
[1755479920742,67.74630601,190.06,190.05,0.03]
[1755479921223,72.13436977,190.06,190.05,0.03]
[1755479922239,76.04257854,190.06,190.05,0.03]
[1755479922447,26.0,190.05,190.04,0.03]
[1755479922651,34.93859408,190.05,190.04,0.03]
[1755479923030,29.51082601,190.05,190.04,0.03]
[1755479923337,72.69859408,190.05,190.04,0.03]
[1755479924433,3.51082601,190.05,190.04,0.73]
[1755479924640,41.27082601,190.05,190.04,0.73]
[1755479925743,41.27082601,190.05,190.04,0.03]
[1755479926248,46.69859408,190.05,190.04,0.03]
[1755479926691,51.96036729,190.05,190.04,0.03]
[1755479926984,52.67036729,190.05,190.04,0.03]
[1755479927130,57.06725465,190.05,190.04,0.03]
[1755479928789,60.98597726,190.05,190.04,0.03]
[1755479930369,56.5890899,190.05,190.04,0.03]
[1755479932146,71.69530547,190.05,190.04,0.03]
[1755479932386,66.2675374,190.05,190.03,0.03]
[1755479932537,34.13954862,190.04,190.03,0.03]
[1755479932885,45.45501785,190.04,190.03,0.03]
[1755479933255,39.56731669,190.04,190.03,0.03]
[1755479933462,45.45501785,190.04,190.03,0.03]
[1755479933843,50.71706794,190.04,190.03,0.03]
[1755479934379,50.71706794,190.04,190.03,0.74]
[1755479934380,76.54856518,190.04,190.03,0.74]
[1755479934673,71.12079711,190.04,190.03,0.74]
[1755479934885,81.81076605,190.04,190.03,0.03]
[1755479936071,82.52076605,190.04,190.03,0.03]
[1755479936846,88.40846721,190.04,190.03,0.03]
[1755479937452,88.40846721,190.04,190.0,0.03]
[1755479937670,9.85406942,190.02,190.0,0.03]
[1755479937841,41.17082601,190.01,190.0,0.03]
[1755479938770,41.17082601,190.01,190.0,0.74]
[1755479939939,41.17082601,190.01,190.0,0.03]
[1755479940768,41.17082601,190.01,190.0,0.74]
[1755479940982,4.48630135,190.07,190.0,6.16776807]
[1755479941269,41.18095499,190.06,190.04,5.42776807]
[1755479941488,3.54095499,190.05,190.04,5.42776807]
[1755479941786,2.41095499,190.05,190.04,5.42776807]
[1755479942093,0.06,190.07,190.04,5.42776807]
[1755479942381,37.78,190.07,190.04,5.42776807]
[1755479943183,37.78,190.07,190.03,5.42776807]
[1755479943350,43.91776807,190.07,190.02,5.42776807]
[1755479943992,38.49,190.07,190.02,5.42776807]
[1755479944162,43.20776807,190.07,190.02,5.42776807]
[1755479944483,6.13776807,190.06,190.01,5.42776807]
[1755479944859,0.71,190.06,190.01,5.42776807]
[1755479945060,37.78,190.07,190.03,5.42776807]
[1755479945286,43.75132567,190.07,190.02,5.42776807]
[1755479945467,5.42776807,190.03,190.0,0.03]
[1755479945669,37.7,190.03,190.0,0.03]
[1755479946362,38.41,190.03,190.0,0.03]
[1755479947184,37.7,190.03,190.0,0.03]
[1755479947386,49.10016019,190.03,190.0,0.03]
[1755479947880,5.42776807,190.01,190.0,0.03]
[1755479948176,43.12776807,190.01,190.0,0.03]
[1755479948383,38.41,190.01,190.0,0.03]
[1755479948974,49.10064897,190.01,190.0,0.03]
[1755479949166,43.12776807,190.01,190.0,0.03]
[1755479949366,37.7,190.01,190.0,0.03]
[1755479950098,53.52850455,190.01,190.0,0.03]
[1755479950304,53.52850455,190.01,189.99,0.03]
[1755479950511,10.0746351,190.0,189.99,0.03]
[1755479950810,25.18085067,190.0,189.99,0.03]
[1755479950970,31.42776807,189.99,189.98,0.03]
[1755479951173,78.20352018,189.99,189.98,0.03]
[1755479951400,69.83776807,189.99,189.98,0.03]
[1755479951605,15.10621557,189.98,189.96,0.03]
[1755479951909,15.10621557,189.98,189.88,0.03]
[1755479951910,15.10621557,189.96,189.88,0.03]
[1755479952076,41.10621557,189.93,189.88,0.03]
[1755479952272,93.45409602,189.93,189.88,0.03]
[1755479952491,94.16409602,189.93,189.88,0.03]
[1755479952676,5.42776807,189.89,189.88,0.03]
[1755479952871,43.16776807,189.89,189.88,0.03]
[1755479953075,38.45,189.89,189.88,0.03]
[1755479953284,43.87776807,189.89,189.88,0.03]
[1755479953696,47.41063108,189.89,189.88,0.03]
[1755479954398,26.0,189.86,189.84,0.2]
[1755479954599,61.82183325,189.85,189.84,0.2]
[1755479954810,66.94045938,189.85,189.84,0.2]
[1755479955305,62.53183325,189.85,189.84,0.2]
[1755479955796,62.53183325,189.85,189.74,0.13]
[1755479956005,9.83015897,189.8,189.75,5.42776807]
[1755479956173,41.28784961,189.79,189.74,5.55776807]
[1755479956378,3.52784961,189.78,189.74,10.82806253]
[1755479956583,3.52784961,189.77,189.75,0.13]
[1755479956812,3.52784961,189.76,189.73,10.69838381]
[1755479957021,37.76,189.77,189.73,10.69838381]
[1755479957022,3.52784961,189.75,189.73,5.27061574]
[1755479957316,3.52784961,189.74,189.72,13.58123769]
[1755479957503,3.52784961,189.73,189.72,10.82867158]
[1755479958324,3.52784961,189.73,189.71,10.69893728]
[1755479958514,3.52784961,189.72,189.71,5.42776807]
[1755479959197,3.52784961,189.72,189.71,10.69897148]
[1755479959807,3.52784961,189.72,189.71,5.42776807]
[1755479960009,3.52784961,189.72,189.69,10.69950696]
[1755479960010,7.93024051,189.72,189.69,10.69950696]
[1755479960230,7.93024051,189.71,189.69,5.27173889]
[1755479960416,3.52784961,189.7,189.69,10.69950696]
[1755479961205,7.93024051,189.7,189.69,10.69950696]
[1755479961532,7.93024051,189.7,189.69,10.82950696]
[1755479962128,41.26784961,189.7,189.66,5.42776807]
[1755479962326,9.34929444,189.69,189.62,0.13]
[1755479962528,4.36546107,189.66,189.65,5.42776807]
[1755479962850,7.89331068,189.66,189.65,5.42776807]
[1755479963203,3.52784961,189.66,189.65,5.42776807]
[1755479964103,7.88856506,189.66,189.65,5.42776807]
[1755479964314,7.88856506,189.66,189.64,5.42776807]
[1755479964315,3.52784961,189.66,189.64,5.42776807]
[1755479964506,7.88420918,189.65,189.64,5.42776807]
[1755479964707,3.52784961,189.65,189.64,5.42776807]
[1755479964928,3.52784961,189.65,189.63,5.42776807]
[1755479965125,3.52784961,189.64,189.63,5.42776807]
[1755479966138,3.52784961,189.64,189.63,10.70119527]
[1755479966720,3.52784961,189.64,189.63,10.83119527]
[1755479967105,7.87771476,189.64,189.63,10.83119527]
[1755479967302,3.52784961,189.64,189.63,10.83119527]
[1755479967537,3.52784961,189.64,189.63,10.70119527]
[1755479968028,3.52784961,189.64,189.63,10.83119527]
[1755479968999,4.34986515,189.71,189.66,26.0]
[1755479969250,5.05392373,189.7,189.66,26.0]
[1755479969418,4.34392373,189.68,189.63,31.2734272]
[1755479969621,5.05392373,189.67,189.63,31.2734272]
[1755479969811,0.71,189.67,189.65,5.42776807]
[1755479970008,9.7716918,189.69,189.63,5.2734272]
[1755479970208,0.71,189.66,189.63,10.70119527]
[1755479970414,42.12392373,189.68,189.65,5.42776807]
[1755479970609,37.78,189.68,189.67,5.42776807]
[1755479970802,37.78,189.68,189.63,5.4034272]
[1755479970803,42.83392373,189.68,189.63,5.2734272]
[1755479971008,0.71,189.67,189.64,5.42776807]
[1755479971221,0.71,189.66,189.63,10.70119527]
[1755479971639,0.71,189.66,189.64,5.42776807]
[1755479971923,42.12392373,189.68,189.63,5.4034272]
[1755479972147,5.05392373,189.67,189.65,10.70058828]
[1755479972335,4.34392373,189.67,189.65,10.70058828]
[1755479972546,42.12392373,189.68,189.66,5.42776807]
[1755479972723,42.83392373,189.68,189.66,5.42776807]
[1755479973252,0.71,189.67,189.65,5.42776807]
[1755479973436,0.71,189.67,189.64,5.27310117]
[1755479973437,4.33498552,189.66,189.64,5.27310117]
[1755479973630,5.04498552,189.67,189.65,5.42776807]
[1755479974241,4.33498552,189.66,189.65,5.42776807]
[1755479974549,5.04498552,189.66,189.64,10.70086924]
[1755479974752,0.71,189.65,189.64,5.42776807]
[1755479975048,5.04498552,189.65,189.62,10.70142277]
[1755479975737,4.33498552,189.65,189.62,5.42776807]
[1755479975922,4.33498552,189.63,189.61,0.03]
[1755479976122,4.33498552,189.62,189.61,0.03]
[1755479976723,4.33498552,189.62,189.61,5.45776807]
[1755479977045,5.04498552,189.62,189.61,0.03]
[1755479977264,43.93776807,189.62,189.61,0.03]
[1755479977566,5.42776807,189.6,189.5,5.42776807]
[1755479977847,5.42776807,189.6,189.51,5.42776807]
[1755479977848,4.3280753,189.54,189.51,5.42776807]
[1755479978036,4.3280753,189.54,189.52,5.42776807]
[1755479978240,4.3280753,189.53,189.49,5.27732334]
[1755479978442,4.3280753,189.53,189.52,5.42776807]
[1755479979253,4.3280753,189.55,189.52,5.42776807]
[1755479979550,4.3280753,189.56,189.54,5.42776807]
[1755479979753,43.59076707,189.58,189.55,5.42776807]
[1755479979959,6.48076707,189.57,189.49,18.47063169]
[1755479980131,0.71,189.56,189.52,5.42776807]
[1755479980455,37.82,189.58,189.55,5.42776807]
[1755479980751,38.53,189.58,189.55,5.42776807]
[1755479980955,4.16833439,189.57,189.54,5.42776807]
[1755479981125,4.16833439,189.56,189.53,5.27620957]
[1755479981326,4.16833439,189.55,189.54,5.42776807]
[1755479981756,4.16833439,189.55,189.5,5.27704485]
[1755479981955,41.98833439,189.54,189.5,5.42776807]
[1755479982142,4.16833439,189.53,189.51,5.42776807]
[1755479982344,3.45833439,189.52,189.51,10.70453446]
[1755479982540,3.45833439,189.52,189.51,5.27676639]
[1755479982746,3.45833439,189.52,189.51,10.70453446]
[1755479982956,37.82,189.54,189.51,5.27676639]
[1755479983258,37.82,189.54,189.53,5.42776807]
[1755479983456,3.45588069,189.54,189.53,5.42776807]
[1755479983837,0.71,189.59,189.53,5.42776807]
[1755479984041,3.45688075,189.58,189.51,44.46868238]
[1755479984345,3.45688075,189.57,189.53,5.27620957]
[1755479984556,3.45688075,189.56,189.53,5.27620957]
[1755479984855,37.82,189.58,189.53,18.46673349]
[1755479985159,3.45784407,189.57,189.53,18.46673349]
[1755479985354,37.82,189.58,189.56,5.42776807]
[1755479985535,37.82,189.58,189.57,5.42776807]
[1755479985732,38.49,189.58,189.53,18.46673349]
[1755479985931,0.67,189.57,189.49,5.27732334]
[1755479986141,5.42776807,189.56,189.51,5.42776807]
[1755479986347,0.67,189.55,189.54,5.2759312]
[1755479986553,0.67,189.55,189.53,10.70392151]
[1755479986752,0.67,189.54,189.52,5.42776807]
[1755479987056,43.09491124,189.58,189.52,5.42776807]
[1755479987057,0.67,189.53,189.52,5.42776807]
[1755479987248,0.67,189.55,189.52,5.42776807]
[1755479987450,0.67,189.55,189.51,5.30649815]
[1755479987451,0.67,189.55,189.53,5.42776807]
[1755479987869,0.67,189.54,189.51,5.30649815]
[1755479988065,0.67,189.53,189.51,5.45776807]
[1755479988276,0.67,189.52,189.51,0.03]
[1755479988763,38.49,189.54,189.51,5.45776807]
[1755479988961,0.67,189.53,189.51,0.03]
[1755479989735,0.67,189.52,189.51,0.03]
[1755479989948,0.67,189.53,189.51,0.03]
[1755479990255,0.67,189.52,189.51,0.03]
[1755479991573,11.37425603,189.52,189.48,0.03]
[1755479991884,5.42776807,189.49,189.46,0.03]
[1755479992068,43.28776807,189.48,189.46,0.03]
[1755479992400,43.95776807,189.48,189.46,0.03]
[1755479992540,48.56549999,189.48,189.46,0.03]
[1755479992853,0.67,189.47,189.46,0.03]
[1755479993740,0.67,189.47,189.46,5.45776807]
[1755479993986,38.53,189.47,189.46,0.03]
[1755479995674,64.34186404,189.47,189.46,0.03]